fUST/lending_fUST_20260525
["ID","MTS","AMOUNT","RATE_DAILY","PERIOD"]
[422961363,1779680879000,-249.36655952,9.79e-05,2]
[422961365,1779680879000,-500.0,9.79e-05,2]
[422961366,1779680879000,-500.0,9.79e-05,2]
[422961364,1779680879000,-500.0,9.79e-05,2]
[422961368,1779680879000,-500.0,9.79e-05,2]
[422961367,1779680879000,-500.0,9.79e-05,2]
[422961370,1779680879000,-500.0,9.79e-05,2]
[422961371,1779680879000,-500.0,9.79e-05,2]
[422961373,1779680879000,-250.63344048,9.79e-05,2]
[422961372,1779680879000,-500.0,9.79e-05,2]
[422961369,1779680879000,-500.0,9.79e-05,2]
[422961377,1779680880000,-500.0,9.79e-05,2]
[422961375,1779680880000,-500.0,9.79e-05,2]
[422961374,1779680880000,-249.36655952,9.79e-05,2]
[422961378,1779680880000,-500.0,9.79e-05,2]
[422961376,1779680880000,-500.0,9.79e-05,2]
[422961382,1779680880000,-500.0,9.79e-05,2]
[422961379,1779680880000,-500.0,9.79e-05,2]
[422961381,1779680880000,-500.0,9.79e-05,2]
[422961384,1779680880000,-250.63344048,9.79e-05,2]
[422961383,1779680880000,-500.0,9.79e-05,2]
[422961380,1779680880000,-500.0,9.79e-05,2]
[422961386,1779680881000,-500.0,9.79e-05,2]
[422961385,1779680881000,-249.36655952,9.79e-05,2]
[422961388,1779680881000,-500.0,9.79e-05,2]
[422961390,1779680881000,-553.54013682,9.79e-05,2]
[422961391,1779680881000,-500.0,9.79e-05,2]
[422961389,1779680881000,-500.0,9.79e-05,2]
[422961393,1779680881000,-500.0,9.79e-05,2]
[422961394,1779680881000,-500.0,9.79e-05,2]
[422961395,1779680881000,-197.09330366,9.79e-05,2]
[422961392,1779680881000,-500.0,9.79e-05,2]
[422961387,1779680881000,-500.0,9.79e-05,2]
[422961397,1779680882000,-500.0,9.79e-05,2]
[422961396,1779680882000,-302.90669634,9.79e-05,2]
[422961398,1779680882000,-500.0,9.79e-05,2]
[422961400,1779680882000,-500.0,9.79e-05,2]
[422961399,1779680882000,-500.0,9.79e-05,2]
[422961406,1779680882000,-197.09330366,9.79e-05,2]
[422961404,1779680882000,-500.0,9.79e-05,2]
[422961405,1779680882000,-500.0,9.79e-05,2]
[422961402,1779680882000,-500.0,9.79e-05,2]
[422961401,1779680882000,-500.0,9.79e-05,2]
[422961403,1779680882000,-500.0,9.79e-05,2]
[422961410,1779680883000,-500.0,9.79e-05,2]
[422961407,1779680883000,-300.0,9.789e-05,2]
[422961409,1779680883000,-500.0,9.79e-05,2]
[422961408,1779680883000,-302.90669634,9.79e-05,2]
[422961411,1779680883000,-500.0,9.79e-05,2]
[422961417,1779680883000,-397.09330366,9.79e-05,2]
[422961414,1779680883000,-500.0,9.79e-05,2]
[422961413,1779680883000,-500.0,9.79e-05,2]
[422961416,1779680883000,-500.0,9.79e-05,2]
[422961415,1779680883000,-500.0,9.79e-05,2]
[422961412,1779680883000,-500.0,9.79e-05,2]
[422961419,1779680884000,-500.0,9.79e-05,2]
[422961418,1779680884000,-102.90669634,9.79e-05,2]
[422961421,1779680884000,-500.0,9.79e-05,2]
[422961420,1779680884000,-500.0,9.79e-05,2]
[422961422,1779680884000,-300.0,9.79e-05,2]
[422961424,1779680884000,-150.0,9.791e-05,2]
[422961425,1779680884000,-2447.09330366,9.791e-05,2]
[422961423,1779680884000,-500.0,9.79e-05,2]
[422961428,1779680885000,-2488.6501355,9.791e-05,2]
[422961426,1779680885000,-2101.76069614,9.791e-05,2]
[422961427,1779680885000,-409.58916836,9.791e-05,2]
[422961433,1779680896000,-1157.0,9.888e-05,2]
[422961429,1779680896000,-504.85276855,9.791e-05,2]
[422961430,1779680896000,-155.79942073,9.791e-05,2]
[422961431,1779680896000,-160.0,9.824e-05,2]
[422961432,1779680896000,-160.0,9.824e-05,2]
[422961434,1779680896000,-178.85816487,9.888e-05,2]
[422961440,1779680896000,-500.0,9.888e-05,2]
[422961435,1779680896000,-500.0,9.888e-05,2]
[422961437,1779680896000,-500.0,9.888e-05,2]
[422961438,1779680896000,-500.0,9.888e-05,2]
[422961439,1779680896000,-167.4024491,9.888e-05,2]
[422961441,1779680896000,-16.08719675,9.888e-05,2]
[422961436,1779680896000,-500.0,9.888e-05,2]
[422961465,1779681031000,-500.0,9.887e-05,2]
[422961459,1779681031000,-500.0,9.887e-05,2]
[422961461,1779681031000,-623.20528415,9.887e-05,2]
[422961466,1779681031000,-300.0,9.915e-05,2]
[422961472,1779681031000,-160.0,9.916e-05,2]
[422961468,1779681031000,-160.0,9.916e-05,2]
[422961470,1779681031000,-5000.0,9.916e-05,2]
[422961474,1779681031000,-4572.85035129,0.00010016,2]
[422961476,1779681031000,-405.89418017,0.00010016,2]
[422961463,1779681031000,-501.76157095,9.887e-05,2]
[422961718,1779681038000,-631.74453146,0.00010117,2]
[422961717,1779681038000,-21.25546854,0.00010016,2]
[422961745,1779681043000,-384.21434847,0.00010162,2]
[422961744,1779681043000,-357.26565153,0.00010162,2]
[422961782,1779681046000,-500.0,0.00010162,2]
[422961783,1779681046000,-500.0,0.00010162,2]
[422961796,1779681046000,-500.0,0.00010162,2]
[422961790,1779681046000,-500.0,0.00010162,2]
[422961794,1779681046000,-377.92439818,0.00010162,2]
[422961785,1779681046000,-500.0,0.00010162,2]
[422961784,1779681046000,-500.0,0.00010162,2]
[422961781,1779681046000,-500.0,0.00010162,2]
[422961775,1779681046000,-500.0,0.00010162,2]
[422961789,1779681046000,-500.0,0.00010162,2]
[422961787,1779681046000,-229.00984794,0.00010162,2]
[422961777,1779681046000,-500.0,0.00010162,2]
[422961773,1779681046000,-500.0,0.00010162,2]
[422961771,1779681046000,-500.0,0.00010162,2]
[422961769,1779681046000,-115.78565153,0.00010162,2]
[422961766,1779681046000,-155.79942072,0.00010062,2]
[422961798,1779681046000,-500.0,0.00010162,2]
[422961779,1779681046000,-500.0,0.00010162,2]
[422961802,1779681046000,-500.0,0.00010162,2]
[422961792,1779681046000,-500.0,0.00010162,2]
[422961800,1779681046000,-500.0,0.00010162,2]
[422961804,1779681046000,-500.0,0.00010162,2]
[422961831,1779681046000,-500.0,0.00010162,2]
[422961833,1779681046000,-500.0,0.00010162,2]
[422961828,1779681046000,-500.0,0.00010162,2]
[422961839,1779681046000,-500.0,0.00010162,2]
[422961837,1779681046000,-500.27609791,0.00010162,2]
[422961826,1779681046000,-500.0,0.00010162,2]
[422961819,1779681046000,-500.0,0.00010162,2]
[422961823,1779681046000,-500.0,0.00010162,2]
[422961841,1779681046000,-520.50143561,0.00010162,2]
[422961821,1779681046000,-546.25,0.00010162,2]
[422961817,1779681046000,-500.0,0.00010162,2]
[422961815,1779681046000,-500.0,0.00010162,2]
[422961806,1779681046000,-584.48667769,0.00010162,2]
[422961835,1779681046000,-500.0,0.00010162,2]
[422961807,1779681046000,-500.0,0.00010162,2]
[422961811,1779681046000,-563.93,0.00010162,2]
[422961813,1779681046000,-500.0,0.00010162,2]
[422961825,1779681046000,-500.0,0.00010162,2]
[422961809,1779681046000,-500.0,0.00010162,2]
[422961941,1779681047000,-500.0,0.0001017,2]
[422961940,1779681047000,-500.0,0.00010166,2]
[422961938,1779681047000,-500.0,0.00010166,2]
[422961922,1779681047000,-150.82742309,0.00010166,2]
[422961924,1779681047000,-500.0,0.00010166,2]
[422961907,1779681047000,-500.0,0.00010166,2]
[422961918,1779681047000,-500.0,0.00010166,2]
[422961908,1779681047000,-500.0,0.00010166,2]
[422961911,1779681047000,-500.0,0.00010166,2]
[422961905,1779681047000,-500.0,0.00010166,2]
[422961912,1779681047000,-500.0,0.00010166,2]
[422961926,1779681047000,-623.93,0.00010166,2]
[422961920,1779681047000,-500.0,0.00010166,2]
[422961930,1779681047000,-500.0,0.00010166,2]
[422961956,1779681047000,-500.0,0.0001017,2]
[422961932,1779681047000,-500.0,0.00010166,2]
[422961934,1779681047000,-500.0,0.00010166,2]
[422961936,1779681047000,-500.0,0.00010166,2]
[422961943,1779681047000,-500.0,0.0001017,2]
[422961945,1779681047000,-500.26700315,0.0001017,2]
[422961947,1779681047000,-500.0,0.0001017,2]
[422961949,1779681047000,-500.0,0.0001017,2]
[422961954,1779681047000,-500.37743295,0.0001017,2]
[422961916,1779681047000,-501.75477473,0.00010166,2]
[422961958,1779681047000,-500.0,0.0001017,2]
[422961960,1779681047000,-500.0,0.0001017,2]
[422961952,1779681047000,-500.0,0.0001017,2]
[422961962,1779681047000,-403.11065834,0.0001017,2]
[422961966,1779681047000,-599.05,0.0001017,2]
[422961928,1779681047000,-500.0,0.00010166,2]
[422961914,1779681047000,-546.74822797,0.00010166,2]
[422961882,1779681047000,-500.0,0.00010164,2]
[422961901,1779681047000,-500.0,0.00010164,2]
[422961843,1779681047000,-500.0,0.00010162,2]
[422961845,1779681047000,-568.17,0.00010162,2]
[422961847,1779681047000,-500.0,0.00010162,2]
[422961849,1779681047000,-500.0,0.00010162,2]
[422961851,1779681047000,-500.0,0.00010162,2]
[422961853,1779681047000,-500.0,0.00010162,2]
[422961855,1779681047000,-500.0,0.00010162,2]
[422961867,1779681047000,-500.0,0.00010162,2]
[422961865,1779681047000,-500.0,0.00010162,2]
[422961859,1779681047000,-500.0,0.00010162,2]
[422961857,1779681047000,-500.0,0.00010162,2]
[422961861,1779681047000,-500.0,0.00010162,2]
[422961868,1779681047000,-333.05965246,0.00010162,2]
[422961870,1779681047000,-500.0,0.00010162,2]
[422961872,1779681047000,-500.0,0.00010162,2]
[422961874,1779681047000,-500.0,0.00010164,2]
[422961876,1779681047000,-500.0,0.00010164,2]
[422961878,1779681047000,-500.0,0.00010164,2]
[422961888,1779681047000,-500.0,0.00010164,2]
[422961892,1779681047000,-500.0,0.00010164,2]
[422961890,1779681047000,-502.53,0.00010164,2]
[422961964,1779681047000,-500.0,0.0001017,2]
[422961884,1779681047000,-500.0,0.00010164,2]
[422961886,1779681047000,-500.0,0.00010164,2]
[422961880,1779681047000,-500.0,0.00010164,2]
[422961894,1779681047000,-500.0,0.00010164,2]
[422961896,1779681047000,-500.0,0.00010164,2]
[422961897,1779681047000,-500.0,0.00010164,2]
[422961899,1779681047000,-500.0,0.00010164,2]
[422961903,1779681047000,-500.0,0.00010164,2]
[422961968,1779681047000,-500.0,0.0001017,2]
[422961863,1779681047000,-500.0,0.00010162,2]
[422961972,1779681047000,-500.0,0.0001017,2]
[422962032,1779681047000,-500.0,0.0001017,2]
[422962034,1779681047000,-501.54805465,0.0001017,2]
[422962038,1779681047000,-500.0,0.0001017,2]
[422962036,1779681047000,-500.0,0.0001017,2]
[422962048,1779681047000,-500.0,0.00010171,2]
[422962052,1779681047000,-500.0,0.00010171,2]
[422962054,1779681047000,-325.28690542,0.00010171,2]
[422962050,1779681047000,-500.0,0.00010171,2]
[422962069,1779681047000,-500.0,0.00010171,2]
[422962064,1779681047000,-500.0,0.00010171,2]
[422962067,1779681047000,-500.0,0.00010171,2]
[422962062,1779681047000,-319.44658465,0.00010171,2]
[422962065,1779681047000,-500.0,0.00010171,2]
[422962056,1779681047000,-619.31,0.00010171,2]
[422962046,1779681047000,-500.0,0.00010171,2]
[422962060,1779681047000,-500.0,0.00010171,2]
[422962058,1779681047000,-500.0,0.00010171,2]
[422962074,1779681047000,-500.0,0.00010171,2]
[422962076,1779681047000,-501.24166841,0.00010171,2]
[422962080,1779681047000,-501.48499433,0.00010171,2]
[422962078,1779681047000,-501.73062882,0.00010171,2]
[422962081,1779681047000,-500.78652047,0.00010171,2]
[422962085,1779681047000,-500.0,0.00010171,2]
[422962083,1779681047000,-500.0,0.00010171,2]
[422962092,1779681047000,-500.0,0.00010171,2]
[422962087,1779681047000,-500.0,0.00010171,2]
[422962096,1779681047000,-500.0,0.00010171,2]
[422962089,1779681047000,-500.22386764,0.00010171,2]
[422962091,1779681047000,-500.0,0.00010171,2]
[422962094,1779681047000,-500.0,0.00010171,2]
[422961970,1779681047000,-500.0,0.0001017,2]
[422962044,1779681047000,-1000.0,0.00010171,2]
[422962072,1779681047000,-500.0,0.00010171,2]
[422962042,1779681047000,-500.0,0.0001017,2]
[422962040,1779681047000,-500.0,0.0001017,2]
[422961974,1779681047000,-500.0,0.0001017,2]
[422961976,1779681047000,-515.74,0.0001017,2]
[422961978,1779681047000,-564.67,0.0001017,2]
[422961989,1779681047000,-500.0,0.0001017,2]
[422961991,1779681047000,-500.0,0.0001017,2]
[422961992,1779681047000,-501.42712535,0.0001017,2]
[422961980,1779681047000,-500.0,0.0001017,2]
[422961982,1779681047000,-500.0,0.0001017,2]
[422961985,1779681047000,-502.17751864,0.0001017,2]
[422961987,1779681047000,-500.0,0.0001017,2]
[422961998,1779681047000,-502.00317063,0.0001017,2]
[422961994,1779681047000,-500.80419723,0.0001017,2]
[422961996,1779681047000,-503.02042898,0.0001017,2]
[422962000,1779681047000,-276.78668725,0.0001017,2]
[422961983,1779681047000,-500.0,0.0001017,2]
[422962004,1779681047000,-500.0,0.0001017,2]
[422962030,1779681047000,-500.71790021,0.0001017,2]
[422962002,1779681047000,-501.57710042,0.0001017,2]
[422962027,1779681047000,-445.08935222,0.0001017,2]
[422962025,1779681047000,-627.66,0.0001017,2]
[422962023,1779681047000,-500.0,0.0001017,2]
[422962012,1779681047000,-500.0,0.0001017,2]
[422962010,1779681047000,-579.0,0.0001017,2]
[422962022,1779681047000,-500.0,0.0001017,2]
[422962008,1779681047000,-500.0,0.0001017,2]
[422962006,1779681047000,-535.57646263,0.0001017,2]
[422962018,1779681047000,-500.0,0.0001017,2]
[422962016,1779681047000,-500.0,0.0001017,2]
[422962014,1779681047000,-537.22,0.0001017,2]
[422962020,1779681047000,-500.0,0.0001017,2]
[422962109,1779681048000,-600.0,0.00010371,2]
[422962120,1779681048000,-560.21470082,0.00010436,2]
[422962111,1779681048000,-500.0,0.00010435,2]
[422962115,1779681048000,-648.49,0.00010436,2]
[422962124,1779681048000,-500.0,0.00010436,2]
[422962122,1779681048000,-188.22,0.00010436,2]
[422962119,1779681048000,-395.78,0.00010436,2]
[422962099,1779681048000,-500.0,0.00010171,2]
[422962107,1779681048000,-646.28630991,0.00010171,2]
[422962105,1779681048000,-500.0,0.00010171,2]
[422962103,1779681048000,-500.0,0.00010171,2]
[422962101,1779681048000,-500.0,0.00010171,2]
[422962098,1779681048000,-500.0,0.00010171,2]
[422962113,1779681048000,-500.0,0.00010436,2]
[422962117,1779681048000,-386.99,0.00010436,2]
[422962128,1779681048000,-237.78,0.00010436,2]
[422962155,1779681048000,-500.71976221,0.0001044,2]
[422962132,1779681048000,-204.47,0.00010436,2]
[422962158,1779681048000,-288.3703927,0.0001044,2]
[422962156,1779681048000,-500.0,0.0001044,2]
[422962153,1779681048000,-500.0,0.0001044,2]
[422962151,1779681048000,-76.70983501,0.00010438,2]
[422962143,1779681048000,-500.0,0.00010438,2]
[422962126,1779681048000,-500.0,0.00010436,2]
[422962137,1779681048000,-500.0,0.00010438,2]
[422962141,1779681048000,-500.0,0.00010438,2]
[422962148,1779681048000,-423.29016499,0.00010438,2]
[422962139,1779681048000,-500.0,0.00010438,2]
[422962145,1779681048000,-165.67,0.00010438,2]
[422962147,1779681048000,-375.86,0.00010438,2]
[422962134,1779681048000,-206.37,0.00010438,2]
[422962130,1779681048000,-203.34,0.00010436,2]
[422962136,1779681048000,-346.22,0.00010438,2]
[422962437,1779681597000,-2089.81271343,9.548e-05,2]
[422962438,1779681597000,-2910.18728657,9.644e-05,2]
[422962440,1779681598000,-150.0,9.741e-05,2]
[422962441,1779681598000,-300.0,9.789e-05,2]
[422962442,1779681598000,-2460.18728657,9.791e-05,2]
[422962439,1779681598000,-2089.81271343,9.644e-05,2]
[422962454,1779681599000,-500.0,9.887e-05,2]
[422962443,1779681599000,-539.81271343,9.791e-05,2]
[422962445,1779681599000,-160.0,9.825e-05,2]
[422962444,1779681599000,-160.0,9.825e-05,2]
[422962448,1779681599000,-348.21,9.887e-05,2]
[422962450,1779681599000,-500.0,9.887e-05,2]
[422962446,1779681599000,-161.74769687,9.825e-05,2]
[422962447,1779681599000,-198.0,9.886e-05,2]
[422962449,1779681599000,-453.97,9.887e-05,2]
[422962452,1779681599000,-234.43,9.887e-05,2]
[422962453,1779681599000,-500.0,9.887e-05,2]
[422962455,1779681599000,-315.20887041,9.887e-05,2]
[422962451,1779681599000,-500.0,9.887e-05,2]
[422962456,1779681599000,-428.62071929,9.887e-05,2]
[422962459,1779681600000,-500.0,9.887e-05,2]
[422962460,1779681600000,-500.92583587,9.887e-05,2]
[422962461,1779681600000,-500.0,9.887e-05,2]
[422962462,1779681600000,-500.0,9.887e-05,2]
[422962458,1779681600000,-278.1,9.887e-05,2]
[422962457,1779681600000,-71.37928071,9.887e-05,2]
[422962464,1779681601000,2349.59488342,9.693e-05,2]
[422962463,1779681601000,300.0,9.886e-05,2]
[422962465,1779681602000,-2650.40511658,9.693e-05,2]
[422962468,1779681602000,300.0,9.886e-05,2]
[422962466,1779681602000,-300.0,9.886e-05,2]
[422962467,1779681602000,300.0,9.886e-05,2]
[422962476,1779681670000,-405.47916037,9.789e-05,2]
[422962473,1779681670000,-151.0,9.781e-05,2]
[422962475,1779681670000,-500.0,9.789e-05,2]
[422962474,1779681670000,-500.0,9.789e-05,2]
[422962472,1779681670000,-358.02714826,9.683e-05,2]
[422962471,1779681670000,-4641.97285174,9.683e-05,2]
[422962469,1779681670000,-180.3452689,9.297e-05,7]
[422962470,1779681670000,-177.68187936,9.297e-05,7]
[422962478,1779681671000,-500.0,9.789e-05,2]
[422962479,1779681671000,-500.0,9.789e-05,2]
[422962477,1779681671000,-500.0,9.789e-05,2]
[422962482,1779681671000,-500.0,9.789e-05,2]
[422962481,1779681671000,-500.0,9.789e-05,2]
[422962483,1779681671000,-85.49369137,9.789e-05,2]
[422962480,1779681671000,-500.0,9.789e-05,2]
[422962488,1779681679000,-500.0,9.887e-05,2]
[422962487,1779681679000,-533.58394527,9.789e-05,2]
[422962485,1779681679000,-151.0,9.393e-05,2]
[422962486,1779681679000,-414.50630863,9.789e-05,2]
[422962491,1779681775000,-3554.85339832,9.69e-05,2]
[422962492,1779681775000,-150.0,9.739e-05,2]
[422962494,1779681775000,-500.0,9.887e-05,2]
[422962493,1779681775000,-161.74769687,9.825e-05,2]
[422962495,1779681783000,344.4847413,9.297e-05,7]
[422962496,1779681785000,388.08476424,9.297e-05,7]
[422962498,1779681853000,-161.542089,9.297e-05,7]
[422962499,1779681853000,-151.0,9.399e-05,2]
[422962497,1779681853000,-166.03533832,9.297e-05,7]
[422962500,1779681854000,218.0236567,9.297e-05,7]
[422962501,1779681858000,291.07612623,9.818e-05,2]
[422962520,1779682232000,-156.16435115,9.475e-05,2]
[422962516,1779682232000,-381.9951972,9.297e-05,7]
[422962513,1779682232000,-334.26146898,9.297e-05,7]
[422962518,1779682232000,-1200.0,9.474e-05,2]
[422962511,1779682232000,-359.06448683,9.297e-05,7]
[422962522,1779682232000,-448.17599392,9.475e-05,2]
[422962526,1779682232000,-1461.47836168,9.476e-05,2]
[422962524,1779682232000,-300.0,9.475e-05,2]
[422962528,1779682232000,-465.47474215,9.476e-05,2]
[422962515,1779682232000,-358.86014024,9.297e-05,7]
[422962534,1779682232000,-697.03980434,9.476e-05,2]
[422962631,1779682238000,-500.0,0.0001016,2]
[422962633,1779682238000,-500.0,0.00010161,2]
[422962634,1779682238000,-500.0,0.00010161,2]
[422962635,1779682238000,-500.0,0.00010161,2]
[422962637,1779682238000,-165.28050024,0.00010162,2]
[422962636,1779682238000,-500.0,0.00010161,2]
[422962638,1779682238000,-258.07,0.00010162,2]
[422962640,1779682238000,-500.0,0.00010162,2]
[422962641,1779682238000,-579.31,0.00010162,2]
[422962642,1779682238000,-232.63,0.00010162,2]
[422962632,1779682238000,-500.0,0.0001016,2]
[422962639,1779682238000,-506.93937878,0.00010162,2]
[422962630,1779682238000,-500.0,0.0001016,2]
[422962654,1779682238000,-500.0,0.00010434,2]
[422962624,1779682238000,-500.0,0.0001016,2]
[422962626,1779682238000,-220.87331128,0.0001016,2]
[422962625,1779682238000,-500.0,0.0001016,2]
[422962627,1779682238000,-500.0,0.0001016,2]
[422962623,1779682238000,-500.0,0.0001016,2]
[422962622,1779682238000,-500.0,0.0001016,2]
[422962621,1779682238000,-161.74769687,0.00010056,2]
[422962620,1779682238000,-1118.96381685,9.847e-05,2]
[422962618,1779682238000,-150.0,9.572e-05,2]
[422962629,1779682238000,-432.67191966,0.0001016,2]
[422962619,1779682238000,-142.37022227,9.847e-05,2]
[422962617,1779682238000,-519.14092225,9.476e-05,2]
[422962616,1779682238000,-1856.86616958,9.476e-05,2]
[422962628,1779682238000,-500.0,0.0001016,2]
[422962644,1779682238000,-523.84725395,0.00010162,2]
[422962672,1779682238000,-500.0,0.00010434,2]
[422962646,1779682238000,-500.87164757,0.00010162,2]
[422962643,1779682238000,-635.43036947,0.00010162,2]
[422962675,1779682238000,-140.79201673,0.00010434,2]
[422962669,1779682238000,-1000.0,0.00010434,2]
[422962670,1779682238000,-500.0,0.00010434,2]
[422962673,1779682238000,-500.0,0.00010434,2]
[422962671,1779682238000,-500.0,0.00010434,2]
[422962667,1779682238000,-500.0,0.00010434,2]
[422962668,1779682238000,-500.0,0.00010434,2]
[422962656,1779682238000,-500.0,0.00010434,2]
[422962662,1779682238000,-500.0,0.00010434,2]
[422962664,1779682238000,-500.0,0.00010434,2]
[422962663,1779682238000,-500.0,0.00010434,2]
[422962658,1779682238000,-500.0,0.00010434,2]
[422962659,1779682238000,-180.60638501,0.00010434,2]
[422962674,1779682238000,-454.94,0.00010434,2]
[422962660,1779682238000,-281.55535825,0.00010434,2]
[422962661,1779682238000,-500.0,0.00010434,2]
[422962645,1779682238000,-500.0,0.00010162,2]
[422962647,1779682238000,-500.0,0.00010162,2]
[422962648,1779682238000,-600.0,0.00010364,2]
[422962649,1779682238000,-1360.0,0.00010421,2]
[422962651,1779682238000,-494.42,0.00010434,2]
[422962653,1779682238000,-500.0,0.00010434,2]
[422962652,1779682238000,-248.16,0.00010434,2]
[422962657,1779682238000,-500.0,0.00010434,2]
[422962655,1779682238000,-646.87538855,0.00010434,2]
[422962666,1779682238000,-500.0,0.00010434,2]
[422962665,1779682238000,-500.0,0.00010434,2]
[422962650,1779682238000,-420.0,0.00010423,2]
[422962738,1779682241000,-38.58864211,0.00010434,2]
[422962761,1779682243000,-500.0,0.00010434,2]
[422962759,1779682243000,-421.88,0.00010434,2]
[422962762,1779682243000,-460.47615291,0.00010434,2]
[422962760,1779682243000,-548.02,0.00010434,2]
[422962764,1779682243000,-500.0,0.00010434,2]
[422962763,1779682243000,-500.0,0.00010434,2]
[422962758,1779682243000,-500.0,0.00010434,2]
[422962757,1779682243000,-500.0,0.00010434,2]
[422962751,1779682243000,-121.40497317,8.933e-05,7]
[422962766,1779682243000,-407.21284237,0.00010434,2]
[422962756,1779682243000,-165.22,0.00010434,2]
[422962754,1779682243000,-152.0,0.00010166,2]
[422962752,1779682243000,-30.59502683,8.933e-05,7]
[422962753,1779682243000,-5000.0,9.381e-05,2]
[422962750,1779682243000,-152.0,8.928e-05,7]
[422962765,1779682243000,-263.62059696,0.00010434,2]
[422962755,1779682243000,-320.61934116,0.00010434,2]
[422962767,1779682243000,-404.76653836,0.00010434,2]
[422962769,1779682243000,-500.0,0.00010435,2]
[422962772,1779682243000,-500.0,0.00010436,2]
[422962768,1779682243000,-500.0,0.00010435,2]
[422962786,1779682243000,-397.69135499,0.00010708,2]
[422962785,1779682243000,-175.12,0.00010708,2]
[422962783,1779682243000,-311.94904734,0.00010708,2]
[422962787,1779682243000,-102.30864501,0.00010708,2]
[422962781,1779682243000,-207.03,0.00010708,2]
[422962782,1779682243000,-174.03,0.00010708,2]
[422962780,1779682243000,-500.0,0.00010708,2]
[422962776,1779682243000,-388.15717428,0.00010543,2]
[422962784,1779682243000,-188.05095266,0.00010708,2]
[422962779,1779682243000,-637.9,0.00010708,2]
[422962774,1779682243000,-262.82,0.00010436,2]
[422962777,1779682243000,-500.0,0.00010708,2]
[422962778,1779682243000,-496.83089882,0.00010708,2]
[422962771,1779682243000,-500.0,0.00010435,2]
[422962770,1779682243000,-500.0,0.00010435,2]
[422962773,1779682243000,-500.0,0.00010436,2]
[422962775,1779682243000,-61.63784786,0.00010543,2]
[422962799,1779682244000,-500.0,0.0001071,2]
[422962804,1779682244000,-499.23,0.00010982,2]
[422962800,1779682244000,-500.0,0.00010982,2]
[422962805,1779682244000,-236.52,0.00010982,2]
[422962817,1779682244000,-47.28491495,0.00011258,2]
[422962819,1779682244000,-517.01355294,0.00011401,2]
[422962808,1779682244000,-500.0,0.00010983,2]
[422962807,1779682244000,-500.0,0.00010983,2]
[422962806,1779682244000,-500.0,0.00010983,2]
[422962803,1779682244000,-480.86,0.00010982,2]
[422962818,1779682244000,-599.84611527,0.00011258,2]
[422962802,1779682244000,-500.0,0.00010982,2]
[422962791,1779682244000,-423.83834558,0.00010708,2]
[422962801,1779682244000,-500.0,0.00010982,2]
[422962795,1779682244000,-500.0,0.00010709,2]
[422962797,1779682244000,-500.0,0.00010709,2]
[422962796,1779682244000,-500.0,0.00010709,2]
[422962798,1779682244000,-500.0,0.0001071,2]
[422962793,1779682244000,-233.25551224,0.00010708,2]
[422962790,1779682244000,-500.0,0.00010708,2]
[422962788,1779682244000,-500.0,0.00010708,2]
[422962789,1779682244000,-500.0,0.00010708,2]
[422962792,1779682244000,-266.74448776,0.00010708,2]
[422962809,1779682244000,-500.0,0.00010984,2]
[422962794,1779682244000,-595.32,0.00010708,2]
[422962813,1779682244000,-554.19800202,0.00011257,2]
[422962838,1779682244000,-5045.33615647,0.00013065,2]
[422962810,1779682244000,-500.0,0.00010984,2]
[422962840,1779682244000,-251.0,0.00013596,2]
[422962841,1779682244000,-15598.64781283,0.00013598,2]